bitfinex-derivatives/quotes_ETHF0:USTF0_20241129
["timestamp","ask_amount","ask_price","bid_price","bid_amount"]
[1732880937297,0.967,3599.4,3599.2,40.8]
[1732880937603,0.6942,3600.0,3599.2,43.02]
[1732880937604,0.967,3599.6,3599.2,43.02]
[1732880937893,0.967,3599.6,3599.5,3.2078]
[1732880938093,0.967,3599.6,3599.5,3.7778]
[1732880938499,0.967,3599.6,3599.5,44.5778]
[1732880938995,0.967,3599.6,3599.5,44.85551]
[1732880939191,0.967,3599.7,3599.5,44.5778]
[1732880939398,1.2447,3599.7,3599.6,0.4497]
[1732880939590,1.2447,3599.7,3599.6,4.6497]
[1732880939991,1.2447,3599.7,3599.6,45.4497]
[1732880942507,0.967,3599.7,3599.6,45.4497]
[1732880942707,1.2447,3599.7,3599.6,45.4497]
[1732880942907,0.967,3599.7,3599.6,45.4497]
[1732880943202,1.2447,3599.7,3599.6,45.4497]
[1732880943408,3.77418241,3599.7,3599.6,45.4497]
[1732880943807,0.002,3600.1,3599.6,45.4497]
[1732880944009,0.27769,3599.8,3599.6,45.4497]
[1732880944410,0.2777,3599.7,3599.6,45.4497]
[1732880945007,1.2447,3599.7,3599.6,45.4497]
[1732880946608,0.967,3599.7,3599.6,45.4497]
[1732880947116,1.2447,3599.7,3599.6,45.4497]
[1732880948007,0.2777,3599.7,3599.6,45.0]
[1732880948207,1.2447,3599.7,3599.6,40.8]
[1732880949220,1.81155834,3599.7,3599.6,40.8]
[1732880950919,0.69431,3599.5,3599.0,0.4387]
[1732880951114,2.80722241,3599.1,3599.0,2.2787]
[1732880951920,2.80722241,3599.1,3599.0,43.0787]
[1732880952611,0.27774,3599.1,3599.0,1.84]
[1732880955017,0.51132873,3599.1,3599.0,1.84]
[1732880955514,0.27777,3598.8,3598.7,0.4411]
[1732880955715,3.77425241,3598.8,3598.7,0.4411]
[1732880955920,3.77425241,3598.8,3598.7,0.7371092]
[1732880956615,8.49648241,3598.8,3597.3,3.2078]
[1732880956816,2.52948241,3597.5,3597.4,0.4345]
[1732880957122,3.2078,3598.4,3597.4,43.61237]
[1732880957123,0.967,3597.6,3597.4,43.61237]
[1732880957319,0.967,3597.7,3597.4,43.61237]
[1732880957712,0.967,3597.7,3597.4,43.3345]
[1732880958222,0.967,3597.7,3597.5,0.27786]
[1732880958420,0.967,3597.7,3597.5,2.95]
[1732880958723,0.967,3597.7,3597.5,3.22786]
[1732880958918,0.967,3597.7,3597.5,2.95]
[1732880959814,0.967,3597.7,3597.5,3.22787]
[1732880960019,0.967,3597.7,3597.5,2.95]
[1732880960216,1.24486,3597.7,3597.5,2.95]
[1732880960411,0.27786,3597.6,3597.5,2.95]
[1732880960616,0.43,3597.8,3597.5,2.95]
[1732880960617,2.52948241,3597.9,3597.5,2.95]
[1732880960915,0.967,3597.8,3597.7,3.2078]
[1732880961116,0.967,3597.8,3597.7,5.4278]
[1732880961419,0.967,3597.8,3597.7,2.22]
[1732880961420,1.24485,3597.8,3597.7,2.22]
[1732880962017,0.967,3597.8,3597.7,2.22]
[1732880962214,1.24485,3597.8,3597.7,5.4278]
[1732880963415,0.27787,3597.5,3597.4,0.002]
[1732880963616,2.80735241,3597.5,3597.4,1.442]
[1732880963818,2.80735241,3597.5,3597.4,1.542]
[1732880964017,3.76935241,3597.5,3597.4,1.542]
[1732880965518,3.76935241,3597.5,3596.3,0.27796]
[1732880965719,2.52948241,3596.7,3596.3,2.23796]
[1732880965918,2.52948241,3596.7,3596.4,0.4244]
[1732880965919,0.27794,3596.6,3596.4,0.4244]
[1732880966116,3.2078,3597.6,3597.4,0.002]
[1732880966117,0.27787,3597.5,3597.4,0.002]
[1732880966318,1.23987,3597.5,3597.4,0.002]
[1732880967220,3.76935241,3597.5,3597.4,0.002]
[1732880968021,2.52948241,3597.5,3597.4,0.002]
[1732880968222,2.52948241,3597.9,3597.7,0.27785]
[1732880968423,2.52948241,3597.9,3597.8,1.14835]
[1732880968621,2.52948241,3597.9,3597.8,0.8705]
[1732880969327,3.49148241,3597.9,3597.8,0.8705]
[1732880970025,2.80756839,3598.3,3597.8,0.8705]
[1732880970219,0.27782,3598.2,3597.8,1.14834]
[1732880970723,1.23982,3598.1,3597.8,0.8705]
[1732880971233,0.27783,3598.0,3597.8,0.8705]
[1732880971428,0.962,3598.2,3597.9,0.27783]
[1732880971623,0.962,3598.2,3598.0,0.27783]
[1732880971828,1.23982,3598.2,3597.8,1.14834]
[1732880972028,0.962,3598.2,3597.9,0.27783]
[1732880973232,0.962,3598.2,3598.0,0.27783]
[1732880973425,0.27782,3598.1,3597.8,1.14834]
[1732880973624,0.27783,3598.0,3597.8,0.8705]
[1732880973926,0.27782,3598.1,3597.8,0.8705]
[1732880974132,0.27782,3598.1,3597.8,1.14834]
[1732880974322,0.962,3598.2,3597.8,0.8705]
[1732880974323,0.27783,3598.0,3597.8,0.8705]
[1732880974626,0.27783,3598.0,3597.8,0.002]
[1732880974627,2.80732241,3597.9,3597.8,0.002]
[1732880974827,0.4079,3597.9,3597.2,3.2078]
[1732880975131,2.80735241,3597.5,3597.3,0.4257]
[1732880975328,0.962,3597.4,3597.3,0.7857]
[1732880975825,1.23988,3597.4,3597.3,0.7857]
[1732880976025,1.23988,3597.4,3597.3,0.4257]
[1732880977529,0.962,3597.4,3597.3,0.4257]
[1732880977728,1.23988,3597.4,3597.3,0.4257]
[1732880978125,1.23988,3597.4,3596.9,0.4077]
[1732880978126,0.962,3597.4,3596.9,0.4077]
[1732880978331,0.27789,3597.2,3596.9,2.8046]
[1732880978832,0.2779,3597.2,3596.9,2.8046]
[1732880979034,0.962,3597.4,3596.9,2.8046]
[1732880979235,0.2779,3597.2,3596.9,2.8046]
[1732880979637,0.962,3597.4,3596.9,2.3969]
[1732880979829,0.27791,3597.0,3596.9,1.8869]
[1732880980029,0.27791,3597.0,3596.9,0.01]
[1732880984538,2.52948241,3597.1,3596.9,0.01]
[1732880984935,0.27791,3597.0,3596.9,0.01]
[1732880986141,0.27791,3597.0,3596.9,0.012]
[1732880986947,1.24091,3597.0,3596.9,0.012]
[1732880987347,2.52948241,3597.1,3596.9,3.2198]
[1732880987546,0.963,3597.0,3596.9,3.2198]
[1732880987843,0.4505,3597.5,3596.9,3.2178]
[1732880988144,2.53148241,3598.2,3598.0,0.27783]
[1732880988344,2.53148241,3598.2,3598.1,0.27782]
[1732880988544,2.53148241,3598.2,3598.1,41.91]
[1732880988545,0.002,3598.2,3598.1,41.91]
[1732880988746,0.002,3598.2,3598.1,42.18782]
[1732880989149,0.002,3598.2,3598.1,41.91]
[1732880989447,0.27781,3598.2,3598.1,41.91]
[1732880990247,0.27781,3598.3,3598.1,41.91]
[1732880990754,3.49248241,3598.4,3598.1,42.18782]
[1732880990949,0.27781,3598.2,3598.1,41.91]
[1732880991541,3.49248241,3598.4,3598.1,41.91]
[1732880991749,3.77028241,3598.4,3598.1,41.91]
[1732880992046,0.27781,3598.3,3598.1,41.91]
[1732880993454,3.49248241,3598.4,3598.1,41.91]
[1732880993748,3.77028241,3598.4,3598.1,3.75]
[1732880993945,0.002,3598.2,3598.1,3.75]
[1732880995050,0.27981,3598.2,3598.1,3.75]
[1732880995356,0.002,3598.2,3598.1,3.75]
[1732880996349,0.27981,3598.2,3598.1,3.75]
[1732880996851,0.002,3598.2,3598.1,3.75]
[1732880998049,0.27981,3598.2,3598.1,3.75]
[1732880998250,0.27781,3598.3,3598.1,3.75]
[1732880998445,0.27981,3598.3,3598.1,3.75]
[1732880999749,0.002,3598.3,3598.1,3.75]
[1732880999948,0.27781,3598.2,3598.1,3.75]
[1732881004056,3.2078,3598.2,3597.5,44.0078]
[1732881004352,2.52948241,3597.6,3597.5,40.8]
[1732881004561,2.80734241,3597.6,3597.5,40.8]
[1732881005164,2.52948241,3597.6,3597.5,41.2228]
[1732881005458,0.002,3598.3,3597.5,53.3606]
[1732881005662,0.002,3598.3,3598.0,3.48563]
[1732881005867,0.002,3598.3,3598.0,4.67563]
[1732881006165,0.002,3598.3,3598.1,0.27782]
[1732881006357,0.002,3598.3,3598.1,1.49782]
[1732881006658,0.002,3598.3,3598.1,1.22]
[1732881006861,0.978,3598.2,3597.6,0.27786]
[1732881007060,2.52948241,3597.8,3597.5,44.0078]
[1732881007263,2.52948241,3597.8,3597.5,45.9478]
[1732881007557,2.52948241,3597.8,3597.5,44.0078]
[1732881007769,2.52948241,3597.8,3597.1,3.2098]
[1732881007956,2.52948241,3597.3,3597.1,3.5098]
[1732881008152,2.52948241,3597.3,3597.2,40.8]
[1732881008366,2.52948241,3597.3,3597.2,41.36789]
[1732881008565,2.52948241,3597.3,3597.2,42.23949]
[1732881009466,2.52948241,3597.3,3597.2,41.9616]
[1732881011262,2.52948241,3597.3,3597.2,0.8716]
[1732881011660,2.52948241,3597.3,3597.2,2.15949]
[1732881012169,2.80736241,3597.3,3597.2,1.8816]
[1732881012370,2.80736241,3597.3,3597.2,0.8716]
[1732881013776,2.80736241,3597.3,3597.2,41.2321]
[1732881013976,2.80736241,3597.3,3597.2,41.2621]
[1732881014168,3.24816241,3597.3,3597.2,41.2621]
[1732881014667,3.24816241,3597.3,3597.2,0.03]
[1732881014872,0.27789,3597.2,3597.1,0.002]
[1732881016970,1.25589,3597.2,3597.1,0.002]
[1732881017769,1.25589,3597.2,3596.1,3.2078]
[1732881017770,0.978,3597.2,3596.1,3.2078]
[1732881017977,2.80744241,3596.3,3596.1,3.2178]
[1732881018177,2.52948241,3596.3,3596.1,3.2178]
[1732881018375,0.27797,3596.2,3596.1,3.2178]
[1732881018572,0.27797,3596.2,3596.1,0.01]
[1732881020079,2.80745241,3596.3,3596.1,0.01]
[1732881020277,0.27797,3596.2,3596.1,0.01]
[1732881020875,2.52948241,3596.3,3596.1,0.01]
[1732881021074,0.27797,3596.2,3596.1,0.01]
[1732881021275,2.52948241,3596.3,3596.1,0.01]
[1732881021672,0.27797,3596.2,3596.1,0.01]
[1732881022075,0.27797,3596.2,3596.1,3.2178]
[1732881022272,0.27797,3596.2,3596.1,0.01]
[1732881022476,0.70087,3596.2,3596.1,0.01]
[1732881022680,0.27798,3596.1,3596.0,40.8]
[1732881022877,0.278,3595.8,3595.7,0.01359]
[1732881023078,3.78548241,3595.8,3595.7,0.01359]
[1732881024287,0.27806,3595.1,3594.9,3.2078]
[1732881024579,2.52948241,3595.0,3594.9,3.2078]
[1732881025374,2.52948241,3595.8,3594.9,8.2078]
[1732881025576,1.012,3596.6,3595.4,3.2078]
[1732881025782,1.585,3596.6,3596.4,3.2078]
[1732881026175,2.52948241,3597.0,3596.6,0.002]
[1732881026385,3.54148241,3597.0,3596.6,0.002]
[1732881026576,2.80739241,3597.0,3596.6,0.002]
[1732881026775,2.52948241,3597.0,3596.6,0.002]
[1732881026976,0.27792,3596.9,3596.6,0.002]
[1732881027481,2.80739241,3597.0,3596.6,0.002]
[1732881027879,3.54148241,3597.0,3596.5,0.5353]
[1732881028075,2.52948241,3596.6,3596.5,2.49325]
[1732881028477,2.52948241,3597.0,3596.9,0.27791]
[1732881028682,2.52948241,3597.0,3596.9,3.2078]
[1732881029784,2.80739241,3597.0,3596.9,3.2078]
[1732881029984,2.80739241,3597.0,3596.7,0.27793]
[1732881030181,2.52948241,3597.0,3596.9,3.2078]
[1732881030378,2.52948241,3597.0,3596.9,3.48571]
[1732881030983,2.52948241,3597.0,3596.9,3.2078]
[1732881031185,2.52948241,3597.0,3596.9,3.48571]
[1732881031494,0.5301,3597.4,3596.9,3.4378]
[1732881031495,2.52948241,3597.4,3596.9,3.4378]
[1732881031783,2.52948241,3597.0,3596.9,3.4978]
[1732881032387,2.80739241,3597.0,3596.9,3.4978]
[1732881033185,2.52948241,3597.0,3596.9,3.4978]
[1732881034089,2.80739241,3597.0,3596.9,3.4978]
[1732881034589,2.52948241,3597.0,3596.9,3.2078]
[1732881035186,2.52948241,3597.0,3596.5,41.3333]
[1732881035187,0.27793,3596.8,3596.5,3.7411]
[1732881035495,2.52948241,3596.6,3596.5,3.2278]
[1732881037991,2.52948241,3596.6,3596.5,3.50575]
[1732881038294,0.5305,3597.0,3596.9,0.27791]
[1732881038295,2.52948241,3597.0,3596.9,0.27791]
[1732881038485,2.52948241,3597.0,3596.9,4.86571]
[1732881038690,2.52948241,3597.0,3596.9,4.5878]
[1732881038890,2.80739241,3597.0,3596.9,4.5878]
[1732881039397,2.80739241,3597.0,3596.9,1.38]
[1732881039599,2.52948241,3597.0,3596.9,1.38]
[1732881039895,2.52948241,3597.0,3596.5,3.2078]
[1732881040089,0.27792,3596.9,3596.5,3.49574]
[1732881040489,2.52948241,3597.0,3596.7,0.27793]
[1732881040690,2.52948241,3597.0,3596.7,2.49]
[1732881040891,2.52948241,3597.0,3596.9,0.27791]
[1732881041397,2.52948241,3597.0,3596.7,0.27793]
[1732881041700,2.52948241,3597.0,3596.8,0.27792]
[1732881041999,2.52948241,3597.0,3596.5,3.2078]
[1732881042195,2.52948241,3597.0,3596.9,3.48571]
[1732881042396,0.002,3597.3,3597.2,0.27789]
[1732881043094,0.002,3597.3,3597.2,41.07789]
[1732881043396,0.002,3597.3,3597.2,40.8]
[1732881043593,0.27988,3597.3,3597.2,40.8]
[1732881043791,0.002,3597.3,3596.9,3.2078]
[1732881043987,2.52948241,3597.0,3596.9,5.8278]
[1732881044193,2.52948241,3597.0,3596.9,6.10571]
[1732881044388,2.52948241,3597.0,3596.9,46.90571]
[1732881044590,2.52948241,3597.0,3596.9,5.8278]
[1732881044786,2.80739241,3597.0,3596.9,5.8278]
[1732881044994,2.52948241,3597.0,3596.9,5.8278]
[1732881045200,2.80739241,3597.0,3596.9,5.8278]
[1732881045393,2.52948241,3597.0,3596.9,5.8278]
[1732881045797,2.52948241,3597.0,3596.9,6.10571]
[1732881045997,2.52948241,3597.0,3596.9,5.8278]
[1732881046198,2.80739241,3597.0,3596.9,5.8278]
[1732881046698,2.52948241,3597.0,3596.9,5.8278]
[1732881046899,2.80739241,3597.0,3596.9,5.8278]
[1732881047403,2.52948241,3597.0,3596.9,6.10571]
[1732881048492,0.5592,3597.2,3596.9,5.8278]
[1732881048694,0.002,3597.3,3597.2,0.27789]
[1732881048895,2.52948241,3598.2,3597.2,3.34]
[1732881049095,0.27779,3598.5,3598.4,0.27779]
[1732881049294,0.27779,3598.5,3598.4,0.01]
[1732881049492,0.27779,3598.5,3598.4,40.81]
[1732881049895,1.28979,3598.6,3598.4,40.81]
[1732881050093,1.012,3598.6,3598.4,40.81]
[1732881050398,0.27779,3598.5,3598.4,40.81]
[1732881050598,1.012,3598.6,3598.4,40.81]
[1732881052002,1.012,3598.6,3598.4,0.01]
[1732881052298,3.08008241,3598.7,3598.4,0.2878]
[1732881052598,4.09108241,3598.7,3598.4,0.2878]
[1732881052799,4.09108241,3598.7,3598.4,0.01]
[1732881053201,4.36886241,3598.7,3598.4,0.01]
[1732881053503,0.27779,3598.6,3598.4,0.01]
[1732881053804,0.27778,3598.6,3598.4,0.01]
[1732881054506,4.36886241,3598.7,3598.4,0.01]
[1732881054705,4.09108241,3598.7,3598.4,0.01]
[1732881054902,4.36886241,3598.7,3598.4,0.01]
[1732881055204,4.09108241,3598.7,3598.4,0.01]
[1732881055399,4.09108241,3598.7,3598.4,0.2878]
[1732881055906,0.27779,3598.6,3598.4,0.01]
[1732881056206,4.36886241,3598.7,3598.4,0.01]
[1732881056600,4.09108241,3598.7,3598.4,0.01]
[1732881056798,4.09108241,3598.7,3598.6,3.2078]
[1732881057203,4.36886241,3598.7,3598.6,3.2078]
[1732881057903,4.09108241,3598.7,3597.9,0.5498]
[1732881058102,2.52948241,3598.0,3597.9,0.6298]
[1732881058410,2.53148241,3598.0,3597.9,0.6298]
[1732881058609,2.53148241,3598.0,3597.9,0.90764]
[1732881058908,2.52948241,3598.0,3597.9,0.90764]
[1732881059110,2.52948241,3598.4,3597.9,0.90764]
[1732881059407,2.80728241,3598.4,3597.9,0.6298]
[1732881059706,2.80728241,3598.4,3598.2,3.2078]
[1732881059901,2.52948241,3598.8,3598.2,7.99233]
[1732881060203,2.52948241,3598.8,3598.7,3.2078]
[1732881060413,2.80725241,3598.8,3598.7,3.2078]
[1732881060905,2.52948241,3598.8,3598.7,3.2078]
[1732881061508,2.52948241,3598.8,3598.7,3.48558]
[1732881062109,2.52948241,3598.8,3598.7,3.2078]
[1732881062907,2.80725241,3598.8,3598.7,3.2078]
[1732881063604,2.80725241,3598.8,3598.1,3.2078]
[1732881063605,0.002,3598.3,3598.1,3.2078]
[1732881063804,0.002,3598.3,3598.1,3.48562]
[1732881064014,0.002,3598.3,3598.1,5.18562]
[1732881064611,2.52948241,3598.4,3598.1,4.9078]
[1732881065115,2.80728241,3598.4,3598.1,5.18562]
[1732881065309,2.52948241,3598.4,3598.2,40.8]
[1732881065512,2.80728241,3598.4,3598.2,44.15]
[1732881065808,2.52948241,3598.4,3598.3,0.27781]
[1732881066411,2.52948241,3598.4,3598.2,41.3939]
[1732881066614,2.52948241,3598.4,3598.3,0.27781]
[1732881067013,0.27779,3598.6,3598.3,3.32]
[1732881067216,3.52748241,3598.8,3598.5,3.2078]
[1732881067413,0.27778,3598.6,3598.5,3.2078]
[1732881067817,0.27782,3598.2,3598.1,3.2078]
[1732881068012,0.27781,3598.3,3598.1,6.5478]
[1732881068315,2.52948241,3598.4,3598.1,6.5478]
[1732881068510,0.27781,3598.2,3598.1,6.5478]
[1732881068817,2.52948241,3598.4,3598.1,6.5478]
[1732881069012,1.547,3598.7,3598.2,0.5948]
[1732881069313,0.27781,3598.2,3598.1,3.2078]
[1732881069614,2.52948241,3598.3,3598.1,3.2078]
[1732881069615,2.52948241,3598.3,3598.1,7.44562]
[1732881070015,1.547,3598.7,3598.3,0.2778]
[1732881070016,0.27779,3598.6,3598.3,0.2778]
[1732881070211,4.07648241,3598.7,3598.1,3.2078]
[1732881070406,0.27779,3598.6,3598.1,6.4378]
[1732881070610,4.07648241,3598.7,3598.3,0.2778]
[1732881070817,4.07648241,3598.7,3598.2,0.27781]
[1732881071013,0.27779,3598.5,3598.2,4.12781]
[1732881071208,0.27779,3598.5,3598.3,0.5771]
[1732881071408,4.07648241,3598.7,3598.3,0.5771]
[1732881071611,0.2778,3598.4,3598.3,0.5771]
[1732881071817,0.2778,3598.5,3598.3,4.06271]
[1732881072017,4.07648241,3598.7,3598.3,3.7849]
[1732881072212,0.002,3598.8,3598.7,0.27778]
[1732881072418,0.002,3598.8,3598.7,5.8878]
[1732881072419,0.27977,3598.8,3598.7,5.8878]
[1732881072714,0.002,3598.8,3598.7,5.8878]
[1732881072914,0.27977,3598.8,3598.7,5.8878]
[1732881073320,0.27977,3598.8,3598.7,2.68]
[1732881073527,0.002,3598.8,3598.7,2.68]
[1732881073816,0.002,3598.8,3598.7,5.8878]
[1732881074020,0.002,3598.8,3598.7,6.16558]
[1732881075323,2.80723241,3599.1,3598.9,0.27776]
[1732881075722,2.80723241,3599.1,3599.0,0.5846]
[1732881076921,0.27777,3598.8,3598.7,3.2078]
[1732881077136,0.27777,3598.8,3598.7,4.6578]
[1732881077338,0.27777,3598.8,3598.7,4.93558]
[1732881077837,0.27776,3598.9,3598.7,4.93558]
[1732881078237,2.52948241,3599.1,3598.7,4.6578]
[1732881078432,0.27975,3599.0,3598.8,0.27777]
[1732881078633,0.27775,3599.0,3598.8,0.27777]
[1732881079036,0.27776,3598.9,3598.8,0.27777]
[1732881079235,2.53148241,3599.1,3598.7,3.2078]
[1732881079436,0.27776,3598.9,3598.7,6.21557]
[1732881079737,0.002,3599.1,3598.7,5.9378]
[1732881079940,0.002,3599.1,3599.0,0.27775]
[1732881080145,2.52948241,3599.7,3599.0,3.01]
[1732881080331,0.002,3599.2,3599.1,0.27774]
[1732881080536,0.002,3599.2,3599.1,7.22514]
[1732881082135,0.002,3599.2,3599.1,48.02514]
[1732881082736,0.996,3600.2,3599.1,47.7474]
[1732881082938,1.27366,3600.2,3600.1,3.2078]
[1732881083741,0.27766,3600.2,3600.1,3.2078]
[1732881083936,0.27766,3600.2,3600.1,3.48547]
[1732881084942,0.27766,3600.2,3600.1,3.2078]
[1732881085138,0.27766,3600.2,3600.1,3.48547]
[1732881085737,0.27766,3600.2,3600.1,3.2078]
[1732881086140,0.83786,3600.2,3600.1,3.2078]
[1732881087835,0.5602,3600.2,3600.1,3.2078]
[1732881088236,0.83786,3600.2,3600.1,3.2078]
[1732881088834,1.81186,3600.2,3600.1,3.2078]
[1732881093036,0.27771,3599.6,3599.3,3.7849]
[1732881093240,0.27771,3599.6,3599.3,6.0149]
[1732881093241,1.1459,3599.5,3599.3,6.0149]
[1732881093646,2.80720241,3599.4,3599.3,3.2078]
[1732881094347,2.52948241,3599.4,3599.3,3.2078]
[1732881094748,2.80720241,3599.4,3599.3,3.2078]
[1732881095145,2.52948241,3599.4,3599.3,3.2078]
[1732881095750,2.80720241,3599.4,3599.3,3.2078]
[1732881098649,2.52948241,3599.4,3599.3,3.2078]
[1732881099145,2.80720241,3599.4,3599.3,3.2078]
[1732881101353,2.80720241,3599.4,3599.3,44.0078]
[1732881101550,2.80720241,3599.4,3599.3,3.2078]
[1732881103553,2.52948241,3599.4,3598.9,44.0078]
[1732881103752,0.27775,3599.0,3598.9,45.8678]
[1732881103957,0.27775,3599.1,3598.9,45.8678]
[1732881104646,2.52948241,3599.4,3598.9,45.8678]
[1732881104859,0.27775,3599.0,3598.9,45.8678]
[1732881105650,0.27775,3599.0,3598.9,45.8698]
[1732881106249,2.80723241,3599.0,3598.9,5.0698]
[1732881106553,2.80723241,3599.0,3598.9,1.862]
[1732881110863,3.03470259,3599.0,3598.9,0.002]
[1732881112155,0.50522018,3599.0,3598.9,0.002]
[1732881112358,1.08402018,3599.0,3598.9,0.002]
[1732881113760,0.80627018,3599.0,3598.9,0.002]
[1732881113953,0.27781,3598.3,3598.2,0.5594]
[1732881114158,0.27781,3598.3,3598.2,0.5994]
[1732881115960,0.84721,3598.3,3598.2,0.04]
[1732881116957,1.45891,3598.3,3598.2,0.04]
[1732881117259,0.27781,3598.3,3598.2,0.04]
[1732881117465,1.22881,3598.3,3598.2,0.04]
[1732881117966,1.22881,3598.3,3597.9,0.27784]
[1732881118168,1.22881,3598.3,3597.9,2.32783]
[1732881118459,2.52948241,3598.1,3597.9,2.32783]
[1732881118665,2.52948241,3598.1,3598.0,40.8]
[1732881118859,2.52948241,3598.1,3598.0,42.12]
[1732881119166,2.52948241,3598.1,3598.0,42.39783]
[1732881119361,2.52948241,3598.1,3598.0,42.12]
[1732881119867,2.52948241,3598.1,3598.0,42.39783]
[1732881120162,2.52948241,3598.1,3598.0,42.12]
[1732881120759,2.52948241,3598.1,3598.0,42.39783]
[1732881120961,2.52948241,3598.5,3598.2,0.27781]
[1732881121267,1.2288,3598.4,3598.3,0.6116]
[1732881121466,0.951,3598.4,3598.3,0.6116]
[1732881121671,1.2288,3598.4,3598.3,0.6116]
[1732881121959,0.951,3598.4,3598.3,0.6116]
[1732881122162,0.951,3598.4,3598.0,40.8]
[1732881122163,0.27782,3598.1,3598.0,40.8]
[1732881122362,0.27782,3598.1,3598.0,42.13]
[1732881122563,2.80730241,3598.1,3598.0,42.13]
[1732881123159,2.52948241,3598.1,3598.0,42.13]
[1732881124169,2.80730241,3598.1,3598.0,42.13]
[1732881124370,2.52948241,3598.1,3598.0,42.13]
[1732881125863,2.52948241,3598.1,3598.0,42.40783]
[1732881127167,2.80730241,3598.1,3598.0,42.40783]
[1732881127365,2.52948241,3598.1,3598.0,42.40783]
[1732881127567,2.80730241,3598.1,3598.0,42.40783]
[1732881128066,2.80730241,3598.1,3598.0,42.13]
[1732881128967,2.80730241,3598.1,3598.0,42.40783]
[1732881129564,2.80730241,3598.1,3598.0,42.13]
[1732881129871,2.80730241,3598.1,3598.0,42.132]
[1732881130070,2.80730241,3598.1,3598.0,42.13]
[1732881130673,2.80730241,3598.1,3598.0,1.33]
[1732881130978,2.80730241,3598.1,3598.0,1.332]
[1732881131166,2.80730241,3598.1,3598.0,0.002]
[1732881131366,0.6946,3598.0,3597.3,3.8029]
[1732881131567,2.80736241,3597.4,3597.3,0.5951]
[1732881131771,0.951,3597.4,3597.3,0.5951]
[1732881132571,0.951,3597.4,3597.0,0.5969]
[1732881132772,0.27789,3597.3,3597.0,1.5516]
[1732881132965,2.52948241,3597.1,3597.0,1.5516]
[1732881133875,2.52948241,3597.1,3597.0,1.82951]
[1732881134062,1.1809527,3597.4,3597.3,0.27788]
[1732881134063,0.951,3597.4,3597.3,0.27788]
[1732881135077,0.951,3597.4,3597.3,3.2078]
[1732881135478,0.951,3597.4,3597.3,3.48568]
[1732881136382,1.22888,3597.4,3597.3,3.2078]
[1732881136567,0.2779,3597.2,3597.0,1.1516]
[1732881136767,0.951,3597.4,3597.0,1.8416]
[1732881136971,0.951,3597.4,3597.3,0.27788]
[1732881137474,1.5527,3598.0,3597.6,0.002]
[1732881137675,0.27784,3597.9,3597.8,0.27784]
[1732881137877,0.27784,3597.9,3597.8,41.07784]
[1732881138179,0.27784,3597.9,3597.8,40.8]
[1732881138377,2.80732241,3597.9,3597.8,40.8]
[1732881138872,0.27786,3597.6,3597.5,0.002]
[1732881139473,3.48566,3597.6,3597.5,0.002]
[1732881139673,2.80740241,3596.9,3596.5,0.27794]
[1732881139870,0.27795,3596.5,3596.3,0.5973]
[1732881140071,2.52948241,3596.9,3596.2,3.2078]
[1732881140072,0.27795,3596.4,3596.2,3.2078]
[1732881140272,2.52948241,3596.5,3596.2,3.2078]
[1732881140478,0.27796,3596.3,3596.2,3.2078]
[1732881140786,0.951,3596.3,3595.7,3.2078]
[1732881141081,0.27798,3596.1,3595.7,0.54801]
[1732881141272,0.951,3596.3,3595.9,0.27799]
[1732881141580,0.27797,3596.2,3595.9,0.27]
[1732881141779,0.5874,3596.1,3595.9,0.27]
[1732881142080,0.5874,3596.1,3596.0,0.27798]
[1732881142277,0.5874,3596.1,3596.0,0.52798]
[1732881142572,0.5874,3596.1,3596.0,0.25]
[1732881143369,0.86538,3596.1,3596.0,0.25]
[1732881143775,0.993,3596.1,3596.0,0.25]
[1732881143980,0.993,3596.1,3596.0,0.52798]
[1732881144277,3.80046241,3596.1,3596.0,0.25]
[1732881144473,0.278,3595.8,3595.7,40.8]
[1732881144673,0.278,3595.8,3595.7,40.84]
[1732881144973,0.278,3595.8,3595.7,0.04]
[1732881146882,1.1818,3596.0,3595.1,40.8]
[1732881147185,2.52948241,3595.2,3595.1,0.91]
[1732881147378,1.29604796,3595.2,3595.1,0.91]
[1732881147682,1.87324796,3595.2,3595.1,0.91]
[1732881148782,1.87324796,3595.2,3594.5,3.4859]
[1732881148783,1.59519796,3595.2,3594.5,3.2078]
[1732881148975,0.02499796,3595.2,3594.5,5.0845]
[1732881149183,0.994,3595.1,3594.8,0.27807]
[1732881149488,0.994,3595.1,3594.8,1.58807]
[1732881149787,0.994,3595.0,3594.8,1.31]
[1732881149991,0.994,3595.0,3594.8,1.58807]
[1732881150284,0.994,3595.0,3594.9,3.48587]
[1732881150476,0.02499796,3595.2,3594.9,6.6578]
[1732881150675,0.02499796,3595.2,3595.1,0.27805]
[1732881150876,0.994,3595.3,3595.2,0.27805]
[1732881151184,0.994,3595.5,3595.2,0.5808]
[1732881151482,0.994,3595.5,3595.1,40.8]
[1732881151483,0.27803,3595.4,3595.3,3.2078]
[1732881151690,2.80751241,3595.4,3595.3,3.2078]
[1732881151885,0.27805,3595.2,3595.1,40.8]
[1732881152187,0.27808,3594.9,3594.5,0.5808]
[1732881152388,2.52948241,3594.9,3594.5,0.85]
[1732881152589,0.27809,3594.7,3594.5,0.85]
[1732881152981,1.89108,3594.8,3594.5,0.85]
[1732881153583,1.613,3594.8,3594.5,0.85]
[1732881154100,1.89108,3594.8,3594.5,0.85]